bitfinex-derivatives/quotes_ETHF0:USTF0_20260115
["timestamp","ask_amount","ask_price","bid_price","bid_amount"]
[1768469523476,3.38271385,3345.4,3343.9,0.00448163]
[1768469523672,40.8,3345.5,3343.9,0.00448163]
[1768469523673,0.82971385,3345.3,3343.9,0.00448163]
[1768469523874,0.00448163,3344.9,3343.9,0.00448163]
[1768469524173,2.554,3345.4,3344.2,1.19352438]
[1768469524474,2.554,3345.4,3344.2,1.19600381]
[1768469524769,40.8,3345.7,3344.2,1.19600381]
[1768469524975,0.82864286,3345.6,3344.2,1.19600381]
[1768469525164,0.00448163,3345.2,3344.3,0.14362358]
[1768469530369,0.0037399,3345.8,3344.4,1.19352438]
[1768469530681,2.5627399,3345.8,3344.4,1.33714796]
[1768469531677,0.00448163,3345.4,3344.4,1.33714796]
[1768469533075,0.0037399,3345.8,3344.9,0.14362358]
[1768469534183,0.00448163,3345.7,3344.9,0.14362358]
[1768469534480,0.14942,3346.9,3345.2,1.33714796]
[1768469534686,0.15116172,3347.1,3345.2,0.14362358]
[1768469534687,40.8,3346.8,3345.2,0.14362358]
[1768469534871,0.15116172,3347.1,3345.5,0.14362358]
[1768469535382,40.8,3347.0,3345.5,0.14362358]
[1768469535584,0.00298772,3346.6,3346.0,0.00448163]
[1768469538080,0.00232306,3347.1,3346.0,0.14810521]
[1768469542174,0.00232306,3347.1,3346.0,0.00448163]
[1768469544980,0.00232306,3347.1,3346.0,0.14831975]
[1768469545180,0.00232306,3347.1,3346.0,0.00448163]
[1768469548187,1.0,3348.2,3346.5,1.3373625]
[1768469548492,2.574,3347.9,3346.5,0.14383812]
[1768469548692,40.8,3348.1,3346.5,0.14383812]
[1768469548892,2.72822028,3348.0,3346.0,0.29777975]
[1768469549092,0.15597135,3348.0,3346.1,0.14383812]
[1768469549292,2.576,3347.9,3346.2,0.14383812]
[1768469550192,0.15597135,3348.0,3346.2,0.14383812]
[1768469550388,2.577,3347.9,3346.2,0.14383812]
[1768469551188,0.15597135,3348.0,3346.2,0.14383812]
[1768469551493,2.579,3347.9,3346.2,0.14383812]
[1768469553286,1.19108186,3347.8,3346.3,1.19108186]
[1768469554491,1.19108186,3347.8,3346.2,0.14383812]
[1768469554692,1.19108186,3347.4,3346.2,1.33491998]
[1768469554898,1.19108186,3347.5,3346.2,1.33491998]
[1768469555794,2.579,3347.9,3346.2,0.14383812]
[1768469556086,1.19108186,3347.6,3346.2,1.33491998]
[1768469557598,2.72837,3347.9,3346.2,1.33491998]
[1768469557788,1.19108186,3347.6,3346.2,1.33491998]
[1768469557990,1.19108186,3347.8,3346.4,1.33491998]
[1768469558299,1.19108186,3347.5,3346.4,0.14383812]
[1768469559199,1.19108186,3347.6,3346.4,0.14383812]
[1768469560493,1.19108186,3347.4,3346.0,1.19556349]
[1768469561196,1.19108186,3347.4,3346.0,1.33940161]
[1768469562098,0.14938,3347.8,3346.4,1.19108186]
[1768469562297,3.77908186,3347.7,3346.3,0.14383812]
[1768469562502,1.19108186,3347.5,3346.3,0.14383812]
[1768469564199,0.14938,3347.8,3346.5,0.14383812]
[1768469564501,1.19108186,3347.5,3346.0,0.14831975]
[1768469564690,1.19108186,3347.5,3346.0,1.33940161]
[1768469565204,1.19108186,3347.3,3346.0,0.14831975]
[1768469566899,1.19108186,3347.1,3346.0,0.14831975]
[1768469567317,1.19108186,3346.8,3346.0,0.00448163]
[1768469567802,1.19108186,3347.0,3346.0,0.00448163]
[1768469569195,0.15322028,3347.3,3346.0,0.00448163]
[1768469569396,0.82980479,3347.2,3346.0,0.00448163]
[1768469569597,2.02088665,3347.1,3346.0,0.00448163]
[1768469569799,0.82980479,3347.0,3346.0,0.00448163]
[1768469570002,1.19108186,3346.7,3346.0,0.00448163]
[1768469570211,0.00448163,3346.7,3345.5,1.19108186]
[1768469571306,0.00448163,3346.7,3345.8,0.00448163]
[1768469577313,1.19556349,3346.7,3345.8,0.00448163]
[1768469577914,0.00448163,3346.7,3345.8,1.19556349]
[1768469578104,0.00448163,3346.7,3345.8,1.34261813]
[1768469578603,0.00448163,3346.7,3345.9,0.14705464]
[1768469578809,1.19108186,3347.4,3346.1,0.14705464]
[1768469579214,1.19108186,3347.4,3345.8,1.19556349]
[1768469579520,1.19108186,3347.2,3345.8,1.19556349]
[1768469581117,1.19108186,3347.0,3345.8,0.00448163]
[1768469581316,1.19108186,3347.2,3345.8,1.19556349]
[1768469581616,1.19108186,3347.2,3345.8,0.00448163]
[1768469582915,2.72879856,3347.5,3345.8,0.15153627]
[1768469583115,1.19108186,3347.3,3345.8,0.15153627]
[1768469583917,1.19108186,3347.3,3345.8,1.34261813]
[1768469584614,1.19108186,3347.2,3345.8,1.34261813]
[1768469585119,1.19108186,3347.2,3345.8,0.15153627]
[1768469585319,1.19108186,3347.2,3345.9,1.19108186]
[1768469586123,2.72879856,3347.5,3345.9,1.19108186]
[1768469586320,1.19108186,3347.3,3345.9,1.19108186]
[1768469587021,1.19108186,3347.3,3345.8,0.15153627]
[1768469587209,1.19108186,3347.3,3345.9,1.19108186]
[1768469587414,0.15079856,3347.5,3345.9,1.19108186]
[1768469587617,1.19108186,3347.1,3345.9,1.19108186]
[1768469587822,1.19108186,3347.3,3345.9,1.19108186]
[1768469591222,1.34188042,3347.3,3345.8,0.15153627]
[1768469591422,1.34188042,3347.3,3345.8,1.19556349]
[1768469593127,1.34188042,3347.3,3345.8,0.00448163]
[1768469593322,1.34188042,3347.3,3345.9,1.19108186]
[1768469593718,0.8350922,3347.2,3345.9,1.19108186]
[1768469593918,1.34188042,3347.3,3345.9,1.19108186]
[1768469594114,0.83509206,3347.2,3345.9,1.19108186]
[1768469594315,1.34188042,3347.3,3345.9,1.19108186]
[1768469594519,0.8353106,3347.2,3345.9,1.19108186]
[1768469594822,1.34188042,3347.3,3345.9,1.19108186]
[1768469595030,0.83531046,3347.2,3345.9,1.19108186]
[1768469595225,1.34188042,3347.3,3345.9,1.19108186]
[1768469595528,0.8355529,3347.2,3345.9,1.19108186]
[1768469595729,1.34188042,3347.3,3345.9,1.19108186]
[1768469595929,0.8355529,3347.2,3345.9,1.19108186]
[1768469596129,1.34188042,3347.3,3345.9,1.19108186]
[1768469596429,0.83556084,3347.2,3345.9,1.19108186]
[1768469596629,1.34188042,3347.3,3345.9,1.19108186]
[1768469596831,0.83558972,3347.2,3345.9,1.19108186]
[1768469597022,1.34188042,3347.3,3345.9,1.19108186]
[1768469597218,0.83558972,3347.2,3345.9,1.19108186]
[1768469597424,1.34188042,3347.3,3345.9,1.19108186]
[1768469597625,0.8355831,3347.2,3345.9,1.19108186]
[1768469597926,1.34188042,3347.3,3345.9,1.19108186]
[1768469598121,0.83558296,3347.2,3345.9,1.19108186]
[1768469598319,1.34188042,3347.3,3345.9,1.19108186]
[1768469598526,0.83558123,3347.2,3345.9,1.19108186]
[1768469598726,1.34188042,3347.3,3345.9,1.19108186]
[1768469598925,0.83558123,3347.2,3345.9,1.19108186]
[1768469599225,1.34188042,3347.3,3345.8,1.19556349]
[1768469599426,0.83557958,3347.2,3345.8,1.19556349]
[1768469599625,1.34188042,3347.3,3345.8,1.19556349]
[1768469599825,0.83557953,3347.2,3345.8,1.19556349]
[1768469600027,1.34188042,3347.3,3345.8,1.19556349]
[1768469600228,0.83558822,3347.2,3345.8,1.19556349]
[1768469600427,1.34188042,3347.3,3345.8,1.19556349]
[1768469600642,0.83562762,3347.2,3345.8,1.19556349]
[1768469600835,1.34188042,3347.3,3345.8,1.19556349]
[1768469601034,0.83562762,3347.2,3345.8,1.19556349]
[1768469601237,1.34188042,3347.3,3345.8,1.19556349]
[1768469601433,0.83565919,3347.2,3345.8,1.19556349]
[1768469601732,1.34188042,3347.3,3345.8,1.19556349]
[1768469601929,0.83565919,3347.2,3345.8,1.19556349]
[1768469602129,1.34188042,3347.3,3345.8,1.19556349]
[1768469602329,0.83566821,3347.2,3345.8,1.19556349]
[1768469602536,1.34188042,3347.3,3345.8,1.19556349]
[1768469602738,0.8356978,3347.2,3345.8,1.19556349]
[1768469603036,1.34188042,3347.3,3345.8,1.19556349]
[1768469603239,0.83570688,3347.2,3345.8,1.19556349]
[1768469603440,1.34188042,3347.3,3345.8,0.00448163]
[1768469603632,0.8357442,3347.2,3345.8,0.00448163]
[1768469603832,1.34188042,3347.3,3345.8,0.00448163]
[1768469604040,0.83574435,3347.2,3345.8,0.00448163]
[1768469604236,1.34188042,3347.3,3345.8,0.00448163]
[1768469604434,0.83580099,3347.2,3345.8,0.00448163]
[1768469604632,1.34188042,3347.3,3345.8,0.00448163]
[1768469604848,0.83580099,3347.2,3345.8,0.00448163]
[1768469605041,1.19108186,3346.4,3345.8,0.00448163]
[1768469605634,1.19108186,3346.6,3345.8,0.00448163]
[1768469609342,1.19108186,3346.7,3345.8,0.00448163]
[1768469610447,0.14177792,3346.9,3345.8,0.00448163]
[1768469610637,1.19108186,3346.7,3345.8,0.00448163]
[1768469612351,0.14177792,3346.9,3345.8,0.00448163]
[1768469612546,0.83489393,3346.8,3345.8,0.00448163]
[1768469612848,0.14177792,3346.9,3345.8,0.00448163]
[1768469613648,1.33285978,3346.9,3345.8,0.00448163]
[1768469613945,1.19108186,3347.0,3345.8,0.00448163]
[1768469614133,0.83485263,3346.9,3345.8,0.00448163]
[1768469614334,1.19108186,3347.0,3345.8,0.00448163]
[1768469614537,0.83482178,3346.9,3345.8,0.00448163]
[1768469614734,1.19108186,3347.0,3345.8,0.00448163]
[1768469614935,0.83482185,3346.9,3345.8,0.00448163]
[1768469615136,1.19108186,3347.0,3345.8,0.00448163]
[1768469615336,0.83479814,3346.9,3345.8,0.00448163]
[1768469615537,0.14941,3347.1,3345.8,0.00448163]
[1768469615740,0.83479813,3347.0,3345.8,0.00448163]
[1768469615942,0.83479813,3346.9,3345.8,0.00448163]
[1768469616142,0.29118792,3347.1,3345.8,0.00448163]
[1768469616344,0.8347813,3347.0,3345.8,0.00448163]
[1768469616653,0.29118792,3347.1,3345.8,0.00448163]
[1768469616654,0.8347813,3346.9,3345.8,0.00448163]
[1768469616850,0.29118792,3347.1,3345.8,0.00448163]
[1768469617042,0.83478096,3347.0,3345.8,0.00448163]
[1768469617244,0.83478096,3346.9,3345.8,0.00448163]
[1768469617542,0.29118792,3347.1,3345.8,0.00448163]
[1768469617742,0.8347707,3347.0,3345.8,0.00448163]
[1768469617943,0.8347707,3346.9,3345.8,0.00448163]
[1768469618243,0.29118792,3347.1,3345.8,0.00448163]
[1768469618442,0.83476651,3347.0,3345.8,0.00448163]
[1768469618653,0.83476651,3346.9,3345.8,0.00448163]
[1768469618854,0.29118792,3347.1,3345.8,0.00448163]
[1768469619044,0.83476637,3347.0,3345.8,0.00448163]
[1768469619342,0.83476637,3346.9,3345.8,0.00448163]
[1768469619538,0.29118792,3347.1,3345.8,0.00448163]
[1768469619755,0.83476852,3347.0,3345.8,0.00448163]
[1768469619944,0.83476852,3346.9,3345.8,0.00448163]
[1768469620249,0.29118792,3347.1,3345.8,0.00448163]
[1768469620448,0.834776,3347.0,3345.8,0.00448163]
[1768469620648,0.834776,3346.9,3345.8,0.00448163]
[1768469620950,0.29118792,3347.1,3345.8,0.00448163]
[1768469621145,0.83477587,3347.0,3345.8,0.00448163]
[1768469621345,0.83477587,3346.9,3345.8,0.00448163]
[1768469621545,0.29118792,3347.1,3345.8,0.00448163]
[1768469621754,0.83479043,3347.0,3345.8,0.00448163]
[1768469621947,0.83479043,3346.9,3345.8,0.00448163]
[1768469622147,0.29118792,3347.1,3345.8,0.00448163]
[1768469622351,0.97658878,3347.0,3345.8,0.00448163]
[1768469622551,0.83481086,3346.9,3345.8,0.00448163]
[1768469622752,0.14177792,3347.0,3345.8,0.00448163]
[1768469622947,0.83481086,3346.9,3345.8,0.00448163]
[1768469623254,0.14177792,3347.0,3345.8,0.00448163]
[1768469623454,0.83483873,3346.9,3345.8,0.00448163]
[1768469623755,0.83483873,3346.8,3345.8,0.00448163]
[1768469623951,0.14177792,3347.0,3345.8,0.00448163]
[1768469624158,0.83197112,3346.9,3345.8,0.00448163]
[1768469624356,0.83197112,3346.8,3345.8,0.00448163]
[1768469624658,0.14177792,3347.0,3345.8,0.00448163]
[1768469624845,0.83200545,3346.9,3345.8,0.00448163]
[1768469625046,0.83200545,3346.8,3345.8,0.00448163]
[1768469625250,0.14177792,3347.0,3345.8,0.00448163]
[1768469625450,0.83204778,3346.9,3345.8,0.00448163]
[1768469625650,0.83204778,3346.8,3345.8,0.00448163]
[1768469625852,0.14177792,3347.0,3345.8,0.00448163]
[1768469626162,0.83204765,3346.9,3345.8,0.00448163]
[1768469626351,0.83204765,3346.8,3345.8,0.00448163]
[1768469626552,0.14177792,3347.0,3345.8,0.00448163]
[1768469626759,0.83209859,3346.9,3345.8,0.00448163]
[1768469626955,0.83209859,3346.8,3345.8,0.00448163]
[1768469627157,0.14177792,3347.0,3345.8,0.00448163]
[1768469627363,0.83215855,3346.9,3345.8,0.00448163]
[1768469627660,0.83215855,3346.8,3345.8,0.00448163]
[1768469627858,0.14177792,3347.0,3345.8,0.00448163]
[1768469628050,0.83215869,3346.9,3345.8,0.00448163]
[1768469628250,0.83215869,3346.8,3345.8,0.00448163]
[1768469628551,0.14177792,3347.0,3345.8,0.00448163]
[1768469628849,0.83222878,3346.9,3345.8,0.00448163]
[1768469629048,0.83222878,3346.8,3345.8,0.00448163]
[1768469629248,0.14177792,3347.0,3345.8,0.00448163]
[1768469629450,0.83231187,3346.9,3345.8,0.00448163]
[1768469629657,0.83231187,3346.8,3345.8,0.00448163]
[1768469629857,0.14177792,3347.0,3345.8,0.00448163]
[1768469630059,0.83231186,3346.9,3345.8,0.00448163]
[1768469630262,0.83231186,3346.8,3345.8,0.00448163]
[1768469630453,0.14177792,3347.0,3345.8,0.00448163]
[1768469630653,0.83240779,3346.9,3345.8,0.00448163]
[1768469630952,0.83240779,3346.8,3345.8,0.00448163]
[1768469631153,0.14177792,3347.0,3345.8,0.00448163]
[1768469631454,0.83252238,3346.9,3345.8,0.00448163]
[1768469631653,0.83252238,3346.8,3345.8,0.00448163]
[1768469631855,0.14177792,3347.0,3345.8,0.00448163]
[1768469632060,0.8325229,3346.9,3345.8,0.00448163]
[1768469632251,0.8325229,3346.8,3345.8,0.00448163]
[1768469632450,0.8325229,3346.7,3345.8,0.00448163]
[1768469632648,0.14941,3347.1,3345.8,0.00448163]
[1768469632849,0.13761923,3347.5,3345.8,0.14826789]
[1768469633049,0.83260833,3347.4,3345.8,0.14826789]
[1768469633260,0.83260833,3347.3,3345.8,0.14826789]
[1768469633448,0.83260833,3347.2,3345.8,0.14826789]
[1768469633651,0.13761923,3347.5,3345.8,0.14826789]
[1768469633854,0.97026625,3347.4,3345.8,0.14826789]
[1768469634060,0.83264702,3347.3,3345.8,0.14826789]
[1768469638569,0.13761923,3347.4,3345.9,1.33547931]
[1768469640469,0.14938,3347.7,3346.0,0.14378626]
[1768469640666,0.83201649,3347.6,3346.0,0.14378626]
[1768469640865,0.83201649,3347.5,3346.0,0.14378626]
[1768469641065,0.83201649,3347.4,3346.0,0.14378626]
[1768469641266,0.14938,3347.7,3346.0,0.14378626]
[1768469641462,0.83191746,3347.6,3346.0,0.14378626]
[1768469641668,0.13761923,3348.2,3346.4,0.14378626]
[1768469641870,0.83186252,3347.9,3346.4,0.14378626]
[1768469642166,0.13761923,3348.2,3346.4,0.14378626]
[1768469642378,0.13761923,3348.2,3346.7,1.33547931]
[1768469642568,0.14935,3348.5,3346.7,1.33850338]
[1768469642873,0.14935,3348.5,3346.8,0.14378626]
[1768469643267,0.77215586,3349.3,3346.7,1.19471712]
[1768469643268,0.13761923,3349.0,3347.2,0.14378626]
[1768469643469,0.96838367,3348.9,3347.2,0.14378626]
[1768469643664,0.96838367,3348.8,3347.8,0.00448163]
[1768469643975,0.13761923,3348.7,3347.8,0.00448163]
[1768469644177,0.14031484,3348.7,3347.8,0.00448163]
[1768469648278,0.14031484,3348.7,3346.8,0.29320626]
[1768469648671,0.14031484,3348.7,3346.9,0.14378626]
[1768469649175,0.00448163,3348.1,3347.5,0.00448163]
[1768469650363,0.00269561,3348.7,3347.6,0.14378626]
[1768469650570,0.13761923,3349.2,3347.6,0.14378626]
[1768469651467,0.14124653,3349.2,3347.6,0.14378626]
[1768469652374,0.0036273,3349.2,3347.6,0.14378626]
[1768469654689,0.0036273,3349.2,3347.8,0.14378626]
[1768469657277,0.13761923,3350.0,3348.2,0.14378626]
[1768469658178,0.14926,3350.4,3348.1,1.19169305]
[1768469658179,0.28687923,3350.4,3348.3,0.14378626]
[1768469658477,0.29024147,3350.4,3348.3,0.14378626]
[1768469658678,2.99,3351.7,3348.3,0.14378626]
[1768469658679,0.13761923,3351.9,3349.1,0.14378626]
[1768469658881,1.24387328,3353.6,3349.0,1.19169305]
[1768469658882,0.13761923,3351.3,3349.6,0.14378626]
[1768469659066,0.13761923,3351.3,3350.2,0.00448163]
[1768469659774,0.1398328,3351.3,3350.2,0.00745336]
[1768469659982,0.00221357,3351.3,3350.2,0.00745336]
[1768469662374,0.13810928,3351.5,3350.2,0.00745336]
[1768469662375,0.13810928,3351.4,3350.2,0.00745336]
[1768469663274,0.14109761,3351.4,3350.2,0.00745336]
[1768469663475,0.00298833,3351.4,3350.2,0.00745336]
[1768469665185,0.00298833,3351.4,3350.3,0.13686057]
[1768469666087,0.29270332,3352.2,3350.3,0.13686057]
[1768469666471,0.14352332,3352.2,3350.3,0.13686057]
[1768469667082,0.14661596,3352.2,3350.3,0.13686057]
[1768469670689,1.19169305,3351.2,3350.2,0.00745336]
[1768469670881,0.14352332,3351.1,3350.2,0.00745336]
[1768469672190,0.14921,3351.5,3350.2,0.00745336]
[1768469673080,0.29273332,3351.5,3350.2,0.00745336]
[1768469674992,0.14352332,3351.4,3350.2,0.00745336]
[1768469677298,1.18871097,3351.2,3350.2,0.00745336]
[1768469677593,1.33223429,3351.2,3350.2,0.00297173]
[1768469677800,1.18871097,3350.4,3348.7,0.14933]
[1768469678099,0.14352332,3350.6,3348.9,1.18871097]
[1768469678100,1.18871097,3350.3,3348.9,1.18871097]
[1768469678295,0.14352332,3350.6,3349.1,1.18871097]
[1768469678493,1.33223429,3350.5,3349.1,1.18871097]
[1768469678694,0.00448163,3350.1,3349.5,0.00448163]
[1768469681198,0.14352332,3350.0,3349.1,0.00303043]
[1768469681391,1.18871097,3349.4,3347.9,1.33808097]
[1768469681705,1.18871097,3349.4,3348.2,1.18871097]
[1768469681892,1.18871097,3349.6,3348.2,1.18871097]
[1768469682403,0.00288639,3349.6,3348.6,0.00448163]
[1768469683496,1.18871097,3349.5,3348.6,0.00448163]
[1768469694017,1.18871097,3349.2,3347.9,1.18871097]
[1768469694307,0.13995343,3349.4,3348.1,1.18871097]
[1768469694508,0.00288639,3349.6,3348.8,1.18871097]
[1768469694919,0.00288639,3349.6,3348.9,0.00448163]
[1768469695115,0.00448163,3350.1,3349.3,1.18871097]
[1768469695815,0.00448163,3350.1,3349.1,1.18871097]
[1768469696308,0.00726879,3350.1,3349.1,1.18871097]
[1768469697814,0.00726879,3350.1,3349.3,1.18871097]
[1768469698506,40.8,3351.0,3349.6,1.18871097]
[1768469698507,44.53071097,3351.0,3349.6,1.18871097]
[1768469698708,1.3286644,3351.2,3349.6,1.18871097]
[1768469699012,1.18871097,3351.0,3349.6,1.18871097]
[1768469699208,1.18871097,3350.6,3349.3,0.13858081]
[1768469699413,0.00448163,3350.3,3349.3,0.13858081]
[1768469699804,0.00448163,3350.3,3349.2,1.18871097]
[1768469701008,0.00448163,3350.3,3349.4,1.18871097]
[1768469701909,0.00448163,3350.3,3349.2,1.32729178]
[1768469702316,0.00448163,3350.3,3349.1,0.14932]
[1768469702511,1.1931926,3350.3,3348.9,1.1931926]
[1768469702716,0.00448163,3350.3,3349.1,1.18871097]
[1768469703820,1.1931926,3350.3,3348.9,1.1931926]
[1768469704042,1.18871097,3349.9,3348.9,0.00448163]
[1768469704319,1.18871097,3349.7,3348.9,0.00448163]
[1768469704618,1.18871097,3349.4,3348.8,0.0036532]
[1768469705705,1.18871097,3349.4,3348.8,0.00813483]
[1768469706620,40.93995343,3349.9,3348.8,0.00813483]
[1768469706818,1.18871097,3349.6,3348.8,0.00813483]
[1768469709439,1.18871097,3349.2,3347.8,0.13858081]
[1768469709720,1.18871097,3349.2,3347.9,1.18871097]
[1768469709928,1.18871097,3349.4,3347.9,1.18871097]
[1768469710321,1.18871097,3349.4,3347.9,1.19197443]
[1768469710815,0.00448163,3350.3,3348.5,0.13858081]
[1768469711017,0.82750632,3350.2,3349.0,1.18871097]
[1768469711322,0.00448163,3350.3,3349.3,1.1931926]
[1768469711727,1.1931926,3350.3,3349.3,0.00448163]
[1768469712018,1.18871097,3350.1,3349.3,0.00448163]
[1768469712622,1.1931926,3350.3,3349.3,0.00448163]
[1768469713717,0.00448163,3350.3,3349.3,0.00448163]
[1768469713919,1.18871097,3350.2,3349.3,0.00448163]
[1768469714330,0.00448163,3350.3,3349.3,0.00448163]
[1768469714625,1.18871097,3350.2,3349.3,0.00448163]
[1768469715032,0.00448163,3350.3,3349.3,0.00448163]
[1768469715222,2.01622626,3350.2,3349.3,0.00448163]
[1768469715523,1.18871097,3350.2,3349.3,0.00448163]
[1768469715831,0.00448163,3350.3,3349.3,0.00448163]
[1768469716030,0.82751538,3350.2,3349.3,0.00448163]
[1768469716330,1.1931926,3350.3,3349.3,0.00448163]
[1768469716532,0.82755136,3350.2,3349.3,0.00448163]
[1768469716822,1.18871097,3350.1,3349.3,0.00448163]
[1768469717027,1.18871097,3349.9,3349.3,0.00448163]
[1768469719033,1.33314603,3350.3,3349.3,0.00448163]
[1768469719221,0.82772786,3350.2,3349.3,0.00448163]
[1768469719421,0.82772786,3350.1,3349.3,0.00448163]
[1768469719615,0.14443506,3350.3,3349.3,0.00448163]
[1768469719922,0.82773492,3350.2,3349.3,0.00448163]
[1768469720120,0.14443506,3350.3,3349.3,0.00448163]
[1768469720321,0.82775537,3350.2,3349.3,0.00448163]
[1768469720619,0.14443506,3350.3,3349.3,0.00448163]
[1768469720822,0.82781231,3350.2,3349.3,0.00448163]
[1768469721022,0.82781231,3350.1,3349.3,0.00448163]
[1768469721223,0.14443506,3350.3,3349.3,0.00448163]
[1768469721536,0.82790001,3350.2,3349.3,0.00448163]
[1768469721726,0.82790001,3350.1,3349.3,0.00448163]
[1768469721926,0.14443506,3350.3,3349.3,0.00448163]
[1768469722136,0.82789989,3350.2,3349.3,0.00448163]
[1768469722334,0.82789989,3350.1,3349.3,0.00448163]
[1768469722537,0.14443506,3350.3,3349.3,0.00448163]
[1768469722834,0.82799813,3350.2,3349.3,0.00448163]
[1768469723134,0.82799813,3350.1,3349.3,0.00448163]
[1768469723331,0.14443506,3350.3,3349.3,0.00448163]
[1768469723527,0.82810808,3350.2,3349.3,0.00448163]
[1768469723727,0.14443506,3350.3,3349.3,0.00448163]
[1768469724036,0.82810821,3350.2,3349.3,0.00448163]
[1768469724227,0.14443506,3350.3,3349.3,0.00448163]
[1768469724534,0.82836203,3350.2,3349.3,0.00448163]
[1768469724719,0.14443506,3350.3,3349.3,0.00448163]
[1768469724934,0.82836203,3350.2,3349.3,0.00448163]
[1768469725127,0.14443506,3350.3,3349.3,0.00448163]
[1768469725333,0.8283136,3350.2,3349.3,0.00448163]
[1768469725532,0.14443506,3350.3,3349.3,0.00448163]
[1768469725831,0.82836356,3350.2,3349.3,0.00448163]
[1768469726030,0.14443506,3350.3,3349.3,0.00448163]
[1768469726331,0.82836349,3350.2,3349.3,0.00448163]
[1768469726631,0.14443506,3350.3,3349.3,0.00448163]
[1768469726831,0.8283871,3350.2,3349.3,0.00448163]
[1768469727032,0.14443506,3350.3,3349.3,0.00448163]
[1768469727225,0.82839197,3350.2,3349.3,0.00448163]
[1768469727428,0.82839197,3350.1,3349.3,0.00448163]
[1768469727631,1.33314603,3350.3,3349.3,0.00448163]
[1768469727940,0.82841774,3350.2,3349.3,0.00448163]
[1768469728239,0.82841774,3350.1,3349.3,0.00448163]
[1768469728424,1.33314603,3350.3,3349.3,0.00448163]
[1768469728630,0.8284508,3350.2,3349.3,0.00448163]
[1768469728830,0.8284508,3350.1,3349.3,0.00448163]
[1768469729031,1.33314603,3350.3,3349.3,0.00448163]
[1768469729231,0.8284508,3350.2,3349.3,0.00448163]
[1768469729437,0.8284508,3350.1,3349.3,0.00448163]
[1768469729736,1.33314603,3350.3,3349.3,0.00448163]
[1768469729936,0.82863862,3350.2,3349.3,0.00448163]
[1768469730141,0.82863862,3350.1,3349.3,0.00448163]
[1768469730345,1.33314603,3350.3,3349.3,0.00448163]
[1768469730635,0.97420171,3350.2,3349.3,0.00448163]
[1768469730842,0.82884764,3350.1,3349.3,0.00448163]
[1768469731331,2.01755861,3350.1,3349.3,0.00448163]
[1768469731529,0.82884764,3350.0,3349.3,0.00448163]
[1768469731928,1.18871097,3350.1,3349.3,0.00448163]
[1768469732231,0.82909245,3350.0,3349.3,0.00448163]
[1768469732427,1.18871097,3350.1,3349.3,0.00448163]
[1768469732727,0.82937772,3350.0,3349.3,0.00448163]
[1768469732923,1.18871097,3350.1,3349.3,0.00448163]
[1768469733227,0.82937824,3350.0,3349.3,0.00448163]
[1768469733428,1.18871097,3350.1,3349.3,0.00448163]
[1768469733738,0.82947299,3350.0,3349.3,0.00448163]
[1768469734038,1.18871097,3350.1,3349.3,0.00448163]
[1768469734237,0.82947288,3350.0,3349.3,0.00448163]
[1768469734439,1.18871097,3350.1,3349.3,0.00448163]
[1768469734737,0.82947776,3350.0,3349.3,0.00448163]
[1768469734939,1.18871097,3350.1,3349.3,0.00448163]
[1768469735137,0.82947779,3350.0,3349.3,0.00448163]
[1768469735335,1.18871097,3349.7,3348.4,0.13858081]
[1768469735639,1.18871097,3349.5,3348.4,0.13858081]
[1768469736540,1.18871097,3349.7,3348.4,0.13858081]
[1768469737840,1.18871097,3349.7,3348.5,1.18871097]
[1768469739441,0.14535407,3350.2,3348.4,0.13858081]
[1768469739637,0.97547221,3350.1,3348.4,0.13858081]
[1768469739838,0.83011814,3350.0,3348.4,0.13858081]
[1768469740139,0.83011814,3349.9,3348.4,0.13858081]
[1768469740446,0.83011814,3349.8,3348.4,0.13858081]
[1768469740742,0.83011814,3349.7,3348.4,0.13858081]
[1768469740943,0.14535407,3350.1,3348.4,0.13858081]
[1768469741240,0.83048768,3350.0,3348.4,0.13858081]
[1768469741441,0.83048768,3349.9,3348.4,0.13858081]
[1768469741642,0.83048768,3349.8,3348.4,0.13858081]
[1768469741939,0.83048768,3349.7,3348.4,0.13858081]
[1768469742141,0.14535407,3350.1,3348.4,0.13858081]
[1768469742335,0.83045057,3350.0,3348.4,0.13858081]
[1768469742535,0.97580464,3349.9,3348.0,0.13377439]
[1768469742740,0.83045057,3349.8,3348.1,0.13377439]
[1768469742940,0.83045057,3349.8,3348.6,0.00448163]
[1768469748748,0.14535407,3349.7,3348.6,0.00448163]
[1768469748943,0.83045057,3349.6,3348.6,0.00448163]
[1768469749139,0.83045057,3349.5,3348.6,0.00448163]
[1768469749338,0.83045057,3349.4,3348.6,0.00448163]
[1768469749540,0.14535407,3349.7,3348.6,0.00448163]
[1768469749741,0.82978336,3349.6,3348.6,0.00448163]
[1768469749944,0.82978336,3349.5,3348.6,0.00448163]
[1768469750249,0.82978336,3349.4,3348.6,0.00448163]
[1768469750550,0.14535407,3349.7,3348.6,0.00448163]
[1768469750745,0.82971322,3349.6,3348.6,0.00448163]
[1768469750945,0.82971322,3349.5,3348.6,0.00448163]
[1768469751147,0.82971322,3349.4,3348.6,0.00448163]
[1768469751349,0.14535407,3349.7,3348.6,0.00448163]
[1768469751652,0.82966259,3349.6,3348.6,0.00448163]
[1768469751949,0.82966259,3349.5,3348.6,0.00448163]
[1768469752149,0.82966259,3349.4,3348.6,0.00448163]
[1768469752449,0.14535407,3349.7,3348.6,0.00448163]
[1768469752649,0.82961915,3349.6,3348.6,0.00448163]
[1768469752842,0.82961915,3349.5,3348.6,0.00448163]
[1768469753050,0.14535407,3349.7,3348.6,0.00448163]
[1768469753347,0.82961881,3349.6,3348.6,0.00448163]
[1768469753546,0.82961881,3349.5,3348.6,0.00448163]
[1768469753747,0.14535407,3349.7,3348.6,0.00448163]
[1768469754044,0.82960438,3349.6,3348.6,0.00448163]
[1768469754239,0.82960438,3349.5,3348.6,0.00448163]
[1768469754436,0.14535407,3349.7,3348.6,0.00448163]
[1768469754638,0.82959989,3349.6,3348.6,0.00448163]
[1768469754846,0.82959989,3349.5,3348.6,0.00448163]
[1768469755046,0.14535407,3349.7,3348.6,0.00448163]
[1768469755246,0.82960017,3349.6,3348.6,0.00448163]
[1768469755447,0.82960017,3349.5,3348.6,0.00448163]
[1768469755643,0.14535407,3349.7,3348.6,0.00448163]
[1768469755848,0.82961112,3349.6,3348.6,0.00448163]
[1768469756053,0.82961112,3349.5,3348.6,0.00448163]
[1768469756349,0.14535407,3349.7,3348.6,0.00448163]
[1768469756550,0.82963538,3349.6,3348.6,0.00448163]
[1768469756740,0.82963538,3349.5,3348.6,0.00448163]
[1768469756939,0.14535407,3349.7,3348.6,0.00448163]
[1768469757149,0.82963531,3349.6,3348.6,0.00448163]
[1768469757344,0.82963531,3349.5,3348.6,0.00448163]
[1768469757544,0.14535407,3349.7,3348.6,0.00448163]
[1768469757845,0.1447475,3349.3,3347.9,0.00326346]
[1768469758750,0.97439575,3349.2,3347.9,0.00326346]
[1768469758951,0.82964825,3349.1,3347.9,0.00326346]
[1768469759650,0.97439575,3349.1,3347.9,0.00326346]
[1768469759847,0.82964825,3349.0,3347.9,0.00326346]
[1768469760052,0.1447475,3349.1,3347.9,0.00326346]
[1768469760351,0.82958172,3349.0,3347.9,0.00326346]